bitfinex/quotes_ETHUSD_20250123
["timestamp","ask_amount","ask_price","bid_price","bid_amount"]
[1737596126655,3.07847,3248.4,3247.8,37.0]
[1737596126806,3.07826,3248.6,3247.9,0.0307841]
[1737596127010,3.07826,3248.6,3248.0,3.10202562]
[1737596127322,3.07826,3248.6,3248.1,0.03078341]
[1737596127529,3.07787,3249.0,3248.2,2.0]
[1737596127728,3.07768,3249.2,3248.3,0.03077917]
[1737596127929,3.07768,3249.2,3248.4,0.20307792]
[1737596128147,3.07768,3249.2,3248.5,0.28777773]
[1737596129438,0.60684804,3248.8,3248.5,0.28777773]
[1737596130165,0.60684804,3248.8,3248.5,0.257]
[1737596132676,0.60684804,3248.8,3248.6,0.19826209]
[1737596133751,3.07815,3248.7,3248.6,0.19826209]
[1737596134056,3.07815,3248.7,3248.6,0.45526209]
[1737596135555,3.07815,3248.7,3248.6,0.19826209]
[1737596135761,3.07815,3248.7,3248.6,0.45526209]
[1737596136257,9.0776958,3248.7,3248.6,0.19826209]
[1737596136429,3.07872,3248.1,3248.0,0.257]
[1737596137420,6.15610513,3248.7,3247.8,0.257]
[1737596137421,3.07895,3247.9,3247.8,0.257]
[1737596137853,3.07895,3247.9,3247.8,0.33585783]
[1737596138062,3.07895,3247.9,3247.8,0.257]
[1737596138826,3.0788,3248.1,3247.8,0.257]
[1737596139023,0.60533693,3248.1,3247.8,0.257]
[1737596139233,0.60533693,3248.1,3247.9,0.2257]
[1737596139567,3.07818,3248.7,3247.9,0.30462917]
[1737596139751,3.07818,3248.7,3248.0,0.03078173]
[1737596140065,3.0778,3249.1,3248.2,2.0]
[1737596140265,3.07806,3248.8,3248.3,0.03078004]
[1737596140561,3.07787,3249.0,3248.4,0.28201227]
[1737596140863,3.07787,3249.0,3248.5,0.03077944]
[1737596141249,3.07787,3249.0,3248.4,0.203078]
[1737596141448,0.8325,3249.2,3248.6,0.07893427]
[1737596141623,0.60835284,3248.7,3248.4,0.203078]
[1737596142768,0.60835284,3248.7,3248.4,0.23385858]
[1737596144161,0.60835284,3248.7,3248.5,0.07861329]
[1737596147739,0.60835284,3248.7,3248.4,0.203078]
[1737596148059,0.60835284,3248.7,3248.6,0.07844009]
[1737596148533,0.60835284,3248.7,3248.4,0.203078]
[1737596148735,0.60835284,3248.7,3248.6,0.19437718]
[1737596148948,0.60835284,3248.7,3248.6,0.11593709]
[1737596149167,0.60835284,3248.7,3248.6,0.19437718]
[1737596149369,0.60835284,3248.7,3248.6,0.11593709]
[1737596149588,0.60835284,3248.7,3248.6,0.19437718]
[1737596149931,0.60835284,3248.7,3248.6,0.11593709]
[1737596150565,0.60835284,3248.7,3248.6,0.19440264]
[1737596150768,0.60835284,3248.7,3248.6,0.11593709]
[1737596150971,0.60835284,3248.7,3248.6,0.19440264]
[1737596151240,0.60835284,3248.7,3248.6,0.11593709]
[1737596151741,0.60835284,3248.7,3248.6,0.19441792]
[1737596152086,0.60835284,3248.7,3248.6,0.11593709]
[1737596152382,0.60835284,3248.7,3248.6,0.19441792]
[1737596152622,4.05514512,3248.7,3248.6,0.19441792]
[1737596153051,4.05514512,3248.7,3248.6,0.11593709]
[1737596153254,3.68650284,3248.7,3248.6,0.11593709]
[1737596153893,0.60835284,3248.7,3248.6,0.11593709]
[1737596156350,0.60835284,3248.7,3248.6,0.19449433]
[1737596156801,0.60835284,3248.7,3248.6,0.11593709]
[1737596157883,3.68650284,3248.7,3248.6,0.11593709]
[1737596158870,0.60835284,3248.7,3248.6,0.11593709]
[1737596159309,3.68650284,3248.7,3248.6,0.11593709]
[1737596160440,5.15946012,3248.7,3248.6,0.11593709]
[1737596161111,4.48300284,3248.7,3248.6,0.11593709]
[1737596161461,7.48300284,3248.7,3248.6,0.11593709]
[1737596161777,3.07897,3247.9,3246.9,3.18715515]
[1737596161981,3.07897,3247.9,3247.0,2.257]
[1737596162595,3.07897,3247.9,3247.4,2.0]
[1737596162789,3.07897,3247.9,3247.4,2.2]
[1737596163098,3.07907,3247.8,3247.4,2.2]
[1737596163306,3.07907,3247.8,3247.4,2.0]
[1737596165262,3.07907,3247.8,3247.5,0.07628937]
[1737596165687,3.07914,3247.7,3247.5,0.07628937]
[1737596166308,3.07891,3247.9,3247.5,0.07628937]
[1737596166506,3.07891,3247.9,3247.4,2.0]
[1737596168038,3.07891,3247.9,3247.5,0.257]
[1737596168337,0.61316456,3247.6,3247.5,0.257]
[1737596170140,0.61316456,3247.6,3247.5,0.28778994]
[1737596170946,0.61316456,3247.6,3247.5,0.257]
[1737596171123,3.07946,3247.4,3246.8,2.0]
[1737596171446,3.07967,3247.1,3246.9,0.6785]
[1737596171613,3.07951,3247.3,3246.9,0.257]
[1737596171925,3.07958,3247.2,3246.9,0.257]
[1737596172116,3.07967,3247.1,3247.0,0.257]
[1737596172493,3.83487,3247.1,3247.0,0.257]
[1737596174140,3.07987,3246.9,3246.6,3.18715515]
[1737596174339,3.07995,3246.8,3246.6,3.18715515]
[1737596174544,3.07995,3246.8,3246.7,2.472]
[1737596175050,5.855982,3246.8,3245.8,2.0]
[1737596175256,3.08024,3246.5,3245.9,0.257]
[1737596175561,3.08049,3246.3,3245.9,0.257]
[1737596175717,3.08056,3246.2,3245.9,0.257]
[1737596175907,3.08049,3246.3,3246.0,0.11515899]
[1737596175908,3.08061,3246.1,3246.0,0.11515899]
[1737596176234,3.08061,3246.1,3246.0,0.37215899]
[1737596176411,3.83581,3246.1,3246.0,0.37215899]
[1737596178609,3.83581,3246.1,3246.0,0.11515899]
[1737596179011,4.45797281,3246.1,3246.0,0.11515899]
[1737596179705,3.08075,3246.0,3245.8,0.257]
[1737596179902,3.0808,3245.9,3245.8,0.257]
[1737596180328,4.45797281,3246.1,3245.8,0.257]
[1737596181573,4.45797281,3246.1,3245.9,0.11484002]
[1737596181858,3.70277281,3246.1,3246.0,35.0]
[1737596182058,0.62216281,3246.1,3246.0,35.0]
[1737596182217,0.62216281,3246.1,3246.0,38.17708631]
[1737596183062,0.62216281,3246.1,3246.0,38.29192633]
[1737596183946,0.62216281,3246.1,3246.0,3.29192633]
[1737596184153,0.62216281,3246.1,3246.0,0.18990071]
[1737596185152,0.62216281,3246.1,3246.0,35.18990071]
[1737596185513,5.24,3246.5,3246.0,35.44690071]
[1737596185743,5.24,3246.5,3246.1,0.03080204]
[1737596186061,5.24,3246.5,3246.1,0.10675356]
[1737596186212,3.08016,3246.6,3246.2,3.10202562]
[1737596186543,0.61404751,3246.3,3246.2,3.10202562]
[1737596187548,3.07997,3246.8,3246.2,5.10202562]
[1737596187859,0.61380113,3246.4,3246.3,0.257]
[1737596188552,3.07997,3246.8,3246.3,0.257]
[1737596188754,3.07978,3247.0,3246.4,0.56978165]
[1737596188953,3.07978,3247.0,3246.4,0.03079917]
[1737596189641,3.07986,3246.9,3246.4,0.03079917]
[1737596190016,3.07978,3247.0,3246.3,0.28779876]
[1737596190349,3.08003,3246.8,3246.3,0.257]
[1737596190560,3.08014,3246.6,3246.5,0.11493586]
[1737596190850,3.83664,3246.6,3246.5,0.11493586]
[1737596191065,4.836311,3246.6,3246.5,0.11493586]
[1737596192126,3.08033,3246.4,3246.3,0.11493586]
[1737596192760,3.83683,3246.4,3246.3,0.11493586]
[1737596193051,6.83683,3246.4,3246.3,0.11493586]
[1737596193272,6.83702,3246.2,3246.1,0.11493586]
[1737596193618,7.828755,3246.2,3246.1,0.11493586]
[1737596194820,7.828755,3246.2,3246.0,35.0]
[1737596194821,3.0,3246.1,3246.0,35.0]
[1737596195020,6.08061,3246.1,3246.0,35.0]
[1737596195256,6.08061,3246.1,3246.0,35.07567139]
[1737596196446,6.08061,3246.1,3246.0,35.19082295]
[1737596197365,7.596373,3246.1,3246.0,35.19082295]
[1737596197976,7.596373,3246.1,3246.0,35.07567139]
[1737596198278,6.08061,3246.1,3246.0,35.07567139]
[1737596199958,6.08061,3246.1,3246.0,0.07567139]
[1737596200152,3.0,3246.1,3245.7,0.257]
[1737596200357,3.0809,3245.8,3245.7,0.257]
[1737596200969,3.0809,3245.8,3245.7,35.257]
[1737596201177,3.0809,3245.8,3245.7,35.19152813]
[1737596201680,9.1475,3245.8,3245.7,0.19152813]
[1737596201885,9.76367,3245.8,3245.7,0.19152813]
[1737596202085,10.31367,3245.8,3245.7,0.11545432]
[1737596202706,13.31367,3245.8,3245.7,4.32e-06]
[1737596202981,3.08147,3245.2,3245.1,0.1678066]
[1737596203791,3.08147,3245.2,3245.1,35.1678066]
[1737596208721,5.24,3245.3,3245.1,38.26983222]
[1737596209295,5.24,3245.3,3245.1,40.26983222]
[1737596209500,5.24,3245.3,3245.1,5.26983222]
[1737596209730,5.24,3245.3,3245.1,2.19861826]
[1737596210028,5.24,3245.3,3245.2,35.0]
[1737596210197,5.24,3245.3,3245.2,35.07393784]
[1737596213220,0.6263902,3245.4,3245.2,35.07393784]
[1737596215534,3.08137,3245.3,3245.2,35.07393784]
[1737596216535,3.08137,3245.3,3245.2,35.32993784]
[1737596217235,3.08137,3245.3,3245.2,35.44528835]
[1737596218228,3.08137,3245.3,3245.2,35.32993784]
[1737596218928,8.32137,3245.3,3245.2,35.32993784]
[1737596220934,8.32137,3245.3,3245.2,35.07393784]
[1737596222249,5.24,3245.3,3245.2,38.17596346]
[1737596222749,5.24,3245.3,3245.2,38.29151315]
[1737596223119,4.85380698,3245.3,3245.2,38.29151315]
[1737596223934,4.85380698,3245.3,3245.2,40.29151315]
[1737596224134,3.34458503,3245.3,3245.2,40.29151315]
[1737596224447,3.08044,3246.3,3245.6,2.0]
[1737596224647,3.08036,3246.4,3245.7,0.03080473]
[1737596224846,3.08036,3246.4,3245.7,0.10482413]
[1737596225147,3.08036,3246.4,3245.8,35.0]
[1737596225350,3.08055,3246.2,3245.8,35.0]
[1737596225687,3.08055,3246.2,3245.9,3.2068498]
[1737596225945,3.08043,3246.3,3245.9,3.32239949]
[1737596226545,3.08045,3246.3,3245.9,3.32239949]
[1737596226750,3.08043,3246.3,3245.9,3.32239949]
[1737596227650,3.08054,3246.2,3246.0,0.11554969]
[1737596227850,3.08054,3246.2,3246.1,0.33223995]
[1737596228049,3.08054,3246.2,3246.1,0.07386658]
[1737596228217,3.08054,3246.2,3246.1,0.32986658]
[1737596228946,3.08054,3246.2,3246.1,0.61757508]
[1737596229151,3.08054,3246.2,3246.1,0.73312477]
[1737596229347,3.08054,3246.2,3246.1,35.73312477]
[1737596229552,3.08036,3246.4,3246.1,38.83515039]
[1737596230251,3.08036,3246.4,3246.2,0.2877085]
[1737596230456,3.08036,3246.4,3246.2,0.3615598]
[1737596230761,3.08036,3246.4,3246.2,0.47710949]
[1737596231153,3.89053,3246.7,3246.2,0.47710949]
[1737596231360,3.08013,3246.7,3246.3,0.55579942]
[1737596231658,3.08013,3246.7,3246.3,0.62957433]
[1737596231834,3.08013,3246.7,3246.4,0.40325819]
[1737596232031,3.08013,3246.7,3246.4,0.43405854]
[1737596232231,3.08013,3246.7,3246.5,0.07377491]
[1737596232436,3.08006,3246.7,3246.5,0.07377491]
[1737596232636,3.08014,3246.6,3246.5,0.07377491]
[1737596232835,3.89054,3246.6,3246.5,0.07377491]
[1737596233188,3.89064,3246.5,3246.4,0.40325819]
[1737596233364,3.08052,3246.2,3246.1,0.256]
[1737596233720,3.08099,3245.7,3245.6,35.0]
[1737596233925,3.08099,3245.7,3245.6,35.256]
[1737596234138,3.08099,3245.7,3245.6,35.0]
[1737596234335,3.08099,3245.7,3245.6,35.256]
[1737596234538,3.08099,3245.7,3245.6,35.37132711]
[1737596234739,3.08099,3245.7,3245.6,35.65874212]
[1737596234939,4.33945704,3245.7,3245.6,35.40274212]
[1737596235243,4.33945704,3245.7,3245.6,0.40274212]
[1737596235928,4.33945704,3245.7,3245.6,0.28741501]
[1737596236128,3.89139,3245.7,3245.6,0.28741501]
[1737596236629,3.08118,3245.5,3245.4,35.0]
[1737596237673,3.08118,3245.5,3245.4,35.2874714]
[1737596238165,3.08118,3245.5,3245.4,35.40278669]
[1737596240281,3.08118,3245.5,3245.4,35.47347371]
[1737596241481,3.08118,3245.5,3245.4,35.18600231]
[1737596242587,3.08118,3245.5,3245.4,0.18600231]
[1737596242588,3.83895197,3245.5,3245.4,0.18600231]
[1737596242740,3.83895197,3245.5,3244.4,2.0]
[1737596242741,3.08147,3245.2,3245.0,0.256]
[1737596243457,3.08147,3245.2,3244.4,2.0]
[1737596243665,3.08198,3244.7,3244.5,35.256]
[1737596243871,3.08198,3244.7,3244.6,3.10202562]
[1737596244180,3.08198,3244.7,3244.6,3.38947892]
[1737596244346,3.08198,3244.7,3244.6,0.2874533]
[1737596244547,3.08198,3244.7,3244.6,35.2874533]
[1737596246746,3.08198,3244.7,3244.6,35.2374533]
[1737596246945,3.08198,3244.7,3244.6,35.28737502]
[1737596247345,3.08198,3244.7,3244.6,35.54337502]
[1737596247771,3.70823166,3244.7,3244.6,35.54337502]
[1737596249041,3.70823166,3244.7,3244.6,38.64540064]
[1737596249547,3.70823166,3244.7,3244.6,35.28737502]
[1737596249781,3.70823166,3244.7,3244.6,35.54337502]
[1737596249981,0.62625166,3244.7,3244.6,35.28737502]
[1737596250148,3.70826166,3244.7,3244.6,35.3569471]
[1737596250942,4.50786166,3244.7,3244.6,35.3569471]
[1737596253912,3.0825,3244.2,3243.8,2.0]
[1737596254193,3.0825,3244.2,3243.9,0.456]
[1737596254377,3.0825,3244.2,3244.1,35.0]
[1737596255190,3.0825,3244.2,3244.1,35.06770604]
[1737596255855,3.0825,3244.2,3244.1,35.18275467]
[1737596257577,3.0825,3244.2,3244.1,35.43875467]
[1737596258696,3.70764058,3244.2,3244.1,35.43875467]
[1737596260206,3.70764058,3244.2,3244.1,0.43875467]
[1737596260664,3.70764058,3244.2,3244.1,35.43875467]
[1737596261504,3.08218,3244.5,3244.1,38.54078029]
[1737596261672,3.08205,3244.6,3244.2,0.03082119]
[1737596261873,0.63055066,3244.4,3244.2,0.06798602]
[1737596262070,0.63055066,3244.4,3244.3,35.11504863]
[1737596262297,0.63055066,3244.4,3244.3,38.21707425]
[1737596262508,1.231974,3244.9,3244.3,38.28506027]
[1737596262684,3.08143,3245.3,3244.5,2.0]
[1737596263005,4.313083,3245.4,3244.6,0.09880046]
[1737596263309,0.61600566,3245.1,3244.7,35.51808905]
[1737596263483,0.61600566,3245.1,3244.8,0.03081482]
[1737596263680,0.61600566,3245.1,3244.8,0.09860739]
[1737596264099,0.61600566,3245.1,3244.9,0.11504863]
[1737596264807,0.61600566,3245.1,3245.0,0.06779257]
[1737596265502,3.69756566,3245.1,3245.0,0.06779257]
[1737596265713,0.61600566,3245.1,3245.0,0.06779257]
[1737596266106,0.61600566,3245.1,3245.0,0.1828412]
[1737596266813,0.61600566,3245.1,3245.0,0.11504863]
[1737596266974,0.61600566,3245.1,3245.0,35.18211843]
[1737596267179,0.61600566,3245.1,3245.0,38.28414405]
[1737596269578,3.69756566,3245.1,3245.0,38.28414405]
[1737596270322,0.61600566,3245.1,3245.0,38.28414405]
[1737596270492,0.61600566,3245.1,3245.0,3.28414405]
[1737596270678,0.61600566,3245.1,3245.0,0.18211843]
[1737596271016,0.61600566,3245.1,3245.0,35.18211843]
[1737596271575,4.47186566,3245.1,3245.0,35.18211843]
[1737596271904,4.47186566,3245.1,3245.0,0.43811843]
[1737596272276,4.47186566,3245.1,3245.0,0.37104863]
[1737596272624,4.47186566,3245.1,3245.0,0.43815405]
[1737596272989,3.69756566,3245.1,3245.0,0.43815405]
[1737596273312,3.69756566,3245.1,3245.0,0.46242205]
[1737596273478,0.61600566,3245.1,3245.0,0.46242205]
[1737596274830,3.69756566,3245.1,3245.0,0.46242205]
[1737596276012,0.61600566,3245.1,3245.0,0.46242205]
[1737596276210,3.69756566,3245.1,3245.0,0.46242205]
[1737596276437,3.69756566,3245.1,3245.0,0.39531663]
[1737596279030,3.69756566,3245.1,3245.0,0.46242203]
[1737596280133,0.61600566,3245.1,3245.0,0.46242203]
[1737596280746,3.08118,3245.6,3245.0,0.46242203]
[1737596280747,3.08118,3245.6,3245.1,2.0]
[1737596281049,3.85519,3245.9,3245.2,0.34406691]
[1737596281050,0.62015169,3245.7,3245.2,0.34406691]
[1737596281431,3.08065,3246.1,3245.5,2.0]
[1737596281658,3.08073,3246.0,3245.6,0.03080675]
[1737596282112,0.61639319,3245.8,3245.7,0.06701381]
[1737596282515,0.61639319,3245.8,3245.5,2.0]
[1737596282729,3.69731319,3245.8,3245.5,2.21150486]
[1737596283030,0.61639319,3245.8,3245.6,0.06674417]
[1737596283339,0.61639319,3245.8,3245.6,0.1817928]
[1737596283499,3.69731319,3245.8,3245.6,0.1817928]
[1737596283699,0.61639319,3245.8,3245.6,0.1817928]
[1737596284635,3.69733319,3245.8,3245.6,0.1817928]
[1737596284844,3.69733319,3245.8,3245.6,0.11504863]
[1737596285146,3.69733319,3245.8,3245.7,0.11504863]
[1737596288210,4.45773319,3245.8,3245.7,0.37104863]
[1737596288408,5.13553751,3245.8,3245.7,0.37104863]
[1737596288843,8.13553751,3245.8,3245.7,0.37104863]
[1737596289339,8.13553751,3245.8,3245.7,0.11504863]
[1737596289505,3.08147,3245.2,3245.1,0.256]
[1737596289906,3.84187,3245.2,3245.1,0.256]
[1737596290210,3.08156,3245.1,3245.0,0.024268]
[1737596290410,3.08156,3245.1,3245.0,0.280268]
[1737596292149,3.84196,3245.1,3245.0,0.280268]
[1737596292324,4.534303,3245.1,3245.0,0.280268]
[1737596292511,4.534303,3245.1,3245.0,0.34491508]
[1737596293020,4.534303,3245.1,3245.0,0.280268]
[1737596293223,5.15926449,3245.1,3245.0,0.280268]
[1737596293423,5.15926449,3245.1,3245.0,0.024268]
[1737596293628,11.50384952,3245.1,3245.0,0.024268]
[1737596294472,3.08272,3243.9,3243.6,2.0]
[1737596294616,3.08272,3243.9,3243.7,0.456]
[1737596294817,3.08262,3244.0,3243.8,0.06485041]
[1737596295038,3.08262,3244.0,3243.7,0.456]
[1737596295362,3.08262,3244.0,3243.9,0.06502327]
[1737596295516,3.08262,3244.0,3243.7,0.456]
[1737596295517,3.0825,3244.2,3243.7,0.456]
[1737596295857,3.08253,3244.1,3243.8,0.2456]
[1737596296054,3.08253,3244.1,3243.8,0.31062327]
[1737596299247,3.6843071,3244.1,3243.8,0.31062327]
[1737596301274,0.6017771,3244.1,3243.8,0.31062327]
[1737596301434,3.6843071,3244.1,3243.8,0.31062327]
[1737596301937,3.6843071,3244.1,3244.0,35.0]
[1737596302122,3.6843071,3244.1,3244.0,38.10202562]
[1737596302323,3.6843071,3244.1,3244.0,38.16778584]
[1737596302535,3.6843071,3244.1,3244.0,3.16778584]
[1737596302746,3.6843071,3244.1,3244.0,0.06576022]
[1737596302946,3.6843071,3244.1,3244.0,0.1808165]
[1737596303223,3.6843071,3244.1,3244.0,0.18082667]
[1737596303448,3.6843071,3244.1,3244.0,35.18082667]
[1737596306348,3.08211,3244.6,3244.0,37.18082667]
[1737596306668,3.08224,3244.4,3244.1,3.10202562]
[1737596306971,3.08211,3244.6,3244.3,35.0]
[1737596307276,0.62933894,3244.4,3244.3,35.0]
[1737596307935,3.08188,3244.8,3244.5,2.0]
[1737596308644,3.69143655,3244.8,3244.5,2.0]
[1737596309060,3.69143655,3244.8,3244.6,0.11497524]
[1737596309270,3.69143655,3244.8,3244.7,0.21149752]
[1737596309582,3.08132,3245.4,3244.9,2.0]
[1737596309738,3.08132,3245.4,3245.0,0.28581291]
[1737596310072,0.62255993,3245.4,3245.0,0.28581291]
[1737596310277,0.62255993,3245.4,3245.1,35.22858129]
[1737596310570,3.70384993,3245.4,3245.1,35.22858129]
[1737596310780,3.08137,3245.3,3245.1,35.22858129]
[1737596311873,3.08137,3245.3,3245.2,0.11497524]
[1737596312282,3.86477,3245.3,3245.2,0.11497524]
[1737596312597,4.92975399,3245.3,3245.2,35.11497524]
[1737596312772,4.92975399,3245.3,3245.2,0.11497524]
[1737596312973,0.7834,3245.1,3244.7,0.255]
[1737596313175,3.08185,3244.8,3244.7,0.255]
[1737596313714,3.08185,3244.8,3244.7,0.31804389]
[1737596314017,4.559949,3244.8,3244.7,0.31804389]
[1737596315487,3.86525,3244.8,3244.7,0.31804389]
[1737596317198,3.08185,3244.8,3244.7,0.31804389]
[1737596317659,3.08185,3244.8,3244.7,35.255]
[1737596318079,3.08185,3244.8,3244.7,35.31827265]
[1737596321018,3.08185,3244.8,3244.7,0.31827265]
[1737596321679,3.08185,3244.8,3244.7,35.31827265]
[1737596321875,3.08185,3244.8,3244.7,38.42029827]
[1737596322080,0.6041931,3244.9,3244.7,40.42029827]
[1737596322301,0.6041931,3244.9,3244.8,0.03081526]
[1737596322598,3.08123,3245.5,3245.1,2.0]
[1737596322786,0.7612,3246.0,3245.2,0.03081156]
[1737596322987,3.08093,3245.8,3245.3,0.20308116]
[1737596323193,3.08095,3245.8,3245.4,35.03080886]
[1737596323370,3.08095,3245.8,3245.5,2.0]
[1737596323371,3.08101,3245.7,3245.5,2.0]
[1737596323569,3.08101,3245.7,3245.5,2.0629575]
[1737596324194,3.08101,3245.7,3245.6,35.0]
[1737596324394,3.08101,3245.7,3245.6,38.10202562]
[1737596324902,3.08101,3245.7,3245.6,38.16498312]
[1737596326402,3.08101,3245.7,3245.6,40.16498312]
[1737596326990,3.08101,3245.7,3245.6,40.27992185]
[1737596327404,3.08049,3246.3,3245.6,40.27992185]
[1737596327405,3.08017,3246.6,3246.0,2.0]
[1737596327598,3.08013,3246.7,3246.4,2.0]
[1737596327796,3.07996,3246.8,3246.4,2.0]
[1737596328110,3.08005,3246.7,3246.4,2.0]
[1737596328281,3.08005,3246.7,3246.4,2.20307993]
[1737596328479,3.08005,3246.7,3246.5,0.06273901]
[1737596328707,3.08014,3246.6,3246.5,0.06273901]
[1737596329117,3.08014,3246.6,3246.5,35.0]
[1737596329414,3.08014,3246.6,3246.5,0.06244947]
[1737596329583,4.765353,3246.6,3246.5,0.06244947]
[1737596329783,4.765353,3246.6,3246.1,0.255]
[1737596329784,3.08052,3246.2,3246.1,0.255]
[1737596330214,3.08052,3246.2,3246.1,0.31607238]
[1737596331182,3.84172,3246.2,3246.1,0.31607238]
[1737596331382,3.84172,3246.2,3246.1,0.06107238]
[1737596331617,4.533933,3246.2,3246.1,2.38e-06]
[1737596331787,3.08149,3245.2,3245.1,35.0]
[1737596332123,3.08149,3245.2,3245.1,35.31421448]
[1737596333518,3.08149,3245.2,3245.1,35.42897483]
[1737596334316,6.16265,3245.4,3245.1,35.42897483]
[1737596334482,3.0813,3245.4,3245.2,3.10202562]
[1737596334694,3.0813,3245.4,3245.3,2.0]
[1737596334897,3.0813,3245.4,3245.3,2.05921448]
[1737596335421,3.0813,3245.4,3245.3,2.31421448]
[1737596335598,3.0813,3245.4,3245.3,2.8700139]
[1737596335804,3.0811,3245.6,3245.3,2.8700139]
[1737596335993,3.0811,3245.6,3245.3,2.31421448]
[1737596336192,3.08118,3245.5,3245.4,35.0]
[1737596336819,3.08118,3245.5,3245.4,35.17397483]
[1737596338107,3.84238,3245.5,3245.4,35.42897483]
[1737596339213,3.84238,3245.5,3245.4,35.17397483]
[1737596340201,3.84238,3245.5,3245.4,35.42897483]
[1737596341325,3.84238,3245.5,3245.4,0.42897483]
[1737596341506,3.84238,3245.5,3245.4,0.36976035]
[1737596341711,3.84238,3245.5,3245.4,35.36976035]
[1737596341923,3.84238,3245.5,3245.4,35.42897483]
[1737596344538,4.45449161,3245.5,3245.4,35.42897483]
[1737596348642,0.61211161,3245.5,3245.4,35.42897483]
[1737596348841,3.34458503,3246.1,3245.4,35.42897483]
[1737596348842,3.08115,3245.6,3245.4,38.53100045]
[1737596349141,3.08118,3245.5,3245.4,38.53100045]
[1737596350925,3.081,3245.7,3245.4,38.53100045]
[1737596351127,3.08084,3245.9,3245.5,2.0]
[1737596351374,3.08084,3245.9,3245.6,0.55579942]
[1737596351555,3.08106,3245.7,3245.5,2.0]
[1737596351754,3.08106,3245.7,3245.6,35.0]
[1737596351954,3.08106,3245.7,3245.6,35.11476035]
[1737596356825,3.08106,3245.7,3245.6,0.11476035]
[1737596357733,3.87306,3245.7,3245.6,3.5e-07]
[1737596357953,5.3678602,3245.7,3245.6,3.5e-07]
[1737596358148,5.2109975,3245.7,3245.6,3.5e-07]
[1737596358946,3.08137,3245.3,3245.2,0.254]
[1737596359167,3.08137,3245.3,3245.2,0.31382916]
[1737596362043,3.08137,3245.3,3245.2,35.31382916]
[1737596362246,3.08137,3245.3,3245.2,38.41585478]
[1737596363337,3.70807022,3245.3,3245.2,38.41585478]
[1737596363866,0.62670022,3245.3,3245.2,38.41585478]
[1737596364064,3.08127,3245.5,3245.2,38.41585478]
[1737596364371,3.08127,3245.5,3245.3,0.0308101]
[1737596364537,3.08127,3245.5,3245.4,0.61564382]
[1737596364737,3.08127,3245.5,3245.4,0.0598444]
[1737596365067,3.08127,3245.5,3245.4,35.0]
[1737596365369,3.08127,3245.5,3245.4,35.0598444]
[1737596366660,3.08127,3245.5,3245.4,0.3138444]
[1737596367044,0.7901,3245.6,3244.6,2.0]
[1737596367045,3.08194,3244.7,3244.6,2.0]
[1737596367347,3.08194,3244.7,3244.6,2.51381389]
[1737596367870,3.08194,3244.7,3244.6,2.31381389]
[1737596371588,3.08194,3244.7,3244.6,2.42886721]
[1737596371785,3.69146545,3244.7,3244.6,2.42886721]
[1737596372639,3.69146545,3244.7,3244.6,0.17486721]
[1737596373042,4.47806545,3244.7,3244.6,0.17486721]
[1737596373281,5.54223899,3244.7,3244.6,0.11505332]
[1737596374036,3.08204,3244.6,3244.5,3.32e-06]
[1737596374241,3.86864,3244.6,3244.5,3.32e-06]
[1737596374492,3.86864,3244.6,3243.6,2.217]
[1737596374493,3.08289,3243.7,3243.6,2.217]
[1737596374791,3.08289,3243.7,3243.6,3.27509987]
[1737596376707,3.08289,3243.7,3243.6,2.27712389]
[1737596376905,3.91319,3243.7,3243.6,0.06012389]
[1737596378910,3.08308,3243.5,3243.4,0.2584318]
[1737596379478,3.08308,3243.5,3243.4,0.0044318]
[1737596379692,3.08308,3243.5,3243.4,0.2584318]
[1737596380372,3.08308,3243.5,3243.4,0.2594318]
[1737596385465,3.68640392,3243.5,3243.4,0.2594318]
[1737596386374,0.60332392,3243.5,3243.4,0.2594318]
[1737596386682,3.08303,3243.6,3243.4,0.2594318]
[1737596387226,6.16636,3243.4,3242.2,2.0]
[1737596387360,3.91411,3242.8,3242.2,2.0]
[1737596387562,3.91411,3242.8,3242.3,0.31102492]
[1737596388066,3.0839,3242.7,3242.3,0.31102492]
[1737596388267,3.0841,3242.5,3242.2,0.254]
[1737596388466,3.08424,3242.3,3242.2,0.254]
[1737596389000,0.616834,3242.3,3241.4,0.03084443]
[1737596389202,3.08472,3241.8,3241.5,0.254]
[1737596389369,3.08506,3241.5,3241.3,2.21622777]
[1737596389564,3.08508,3241.4,3241.3,2.21622777]
[1737596389870,3.91538,3241.4,3241.3,2.21622777]
[1737596390109,3.91538,3241.4,3241.3,0.62222778]
[1737596390306,4.923904,3241.4,3241.3,0.62222778]
[1737596392569,4.923904,3241.4,3241.3,0.57222778]
[1737596393161,4.923904,3241.4,3240.8,0.254]
[1737596393162,3.0855,3241.0,3240.8,0.254]
[1737596393445,1.838824,3241.4,3240.8,0.254]
[1737596393446,3.08556,3240.9,3240.8,0.254]
[1737596393810,3.08556,3240.9,3240.1,2.0]
[1737596394005,3.08556,3240.9,3240.2,0.52162696]
[1737596394210,3.08556,3240.9,3240.2,0.29848583]
[1737596394448,3.08556,3240.9,3240.3,0.254]
[1737596394872,3.08541,3241.1,3240.3,0.254]
[1737596395235,3.08541,3241.1,3240.2,0.23859537]
[1737596395436,3.08541,3241.1,3240.3,0.22385954]
[1737596395634,3.08541,3241.1,3240.3,0.53875]
[1737596395849,3.08541,3241.1,3240.2,0.03085887]
[1737596396178,3.08576,3240.7,3240.3,0.255]
[1737596396327,3.08576,3240.7,3240.4,0.05989046]
[1737596397151,3.08556,3240.9,3240.4,0.05989046]
[1737596397381,3.08569,3240.8,3240.3,0.255]
[1737596397532,3.08556,3240.9,3240.3,0.255]
[1737596397730,3.91582,3241.0,3240.3,0.255]
[1737596397944,3.08557,3240.9,3240.3,0.255]
[1737596398128,3.08569,3240.8,3240.3,0.255]
[1737596398368,3.08576,3240.7,3240.3,0.255]
[1737596398675,3.08576,3240.7,3240.4,0.06084306]
[1737596398676,3.91621,3240.6,3240.4,0.06084306]
[1737596398873,3.08575,3240.7,3240.4,0.06084306]
[1737596399035,3.08561,3240.9,3240.2,0.255]
[1737596399235,3.08561,3240.9,3239.8,0.03086353]